fUST/lending_fUST_20260605
["ID","MTS","AMOUNT","RATE_DAILY","PERIOD"]
[424143120,1780609843000,-500.0,0.00014794,2]
[424143118,1780609843000,-500.0,0.0001452,2]
[424143483,1780609846000,-500.0,0.00015067,2]
[424143479,1780609846000,-500.0,0.00014519,2]
[424143481,1780609846000,-500.0,0.00014793,2]
[424143485,1780609846000,-1980.26772594,0.00019555,2]
[424145590,1780609865000,160.0,0.00023255,120]
[424146487,1780611032000,-151.02,0.00012,2]
[424146521,1780611032000,-500.0,0.00013698,2]
[424146520,1780611032000,-500.0,0.00013698,2]
[424146509,1780611032000,-438.85846126,0.00013698,2]
[424146511,1780611032000,-500.0,0.00013698,2]
[424146512,1780611032000,-500.0,0.00013698,2]
[424146514,1780611032000,-500.0,0.00013698,2]
[424146518,1780611032000,-500.0,0.00013698,2]
[424146516,1780611032000,-500.0,0.00013698,2]
[424146517,1780611032000,-325.44790114,0.00013698,2]
[424146515,1780611032000,-500.0,0.00013698,2]
[424146523,1780611032000,-500.0,0.00013698,2]
[424146522,1780611032000,-500.0,0.00013698,2]
[424146525,1780611032000,-500.0,0.00013698,2]
[424146528,1780611032000,-500.0,0.00013698,2]
[424146526,1780611032000,-500.0,0.00013698,2]
[424146527,1780611032000,-500.0,0.00013698,2]
[424146524,1780611032000,-500.0,0.00013698,2]
[424146529,1780611032000,-500.0,0.00013698,2]
[424146534,1780611032000,-1264.1,0.00013698,2]
[424146531,1780611032000,-320.386513,0.00013698,2]
[424146533,1780611032000,-512.29,0.00013698,2]
[424146519,1780611032000,-500.0,0.00013698,2]
[424146510,1780611032000,-500.0,0.00013698,2]
[424146504,1780611032000,-500.0,0.00013698,2]
[424146535,1780611032000,-1296.46,0.00013698,2]
[424146484,1780611032000,-434.57727201,0.0001188,2]
[424146485,1780611032000,-254.19110299,0.0001188,2]
[424146488,1780611032000,-218.86290484,0.0001288,2]
[424146489,1780611032000,-827.0,0.00013694,2]
[424146491,1780611032000,-300.0,0.00013697,2]
[424146492,1780611032000,-500.0,0.00013698,2]
[424146493,1780611032000,-500.0,0.00013698,2]
[424146486,1780611032000,-4311.231625,0.0001188,2]
[424146490,1780611032000,-300.0,0.00013697,2]
[424146494,1780611032000,-500.0,0.00013698,2]
[424146506,1780611032000,-500.0,0.00013698,2]
[424146495,1780611032000,-500.0,0.00013698,2]
[424146498,1780611032000,-500.0,0.00013698,2]
[424146499,1780611032000,-500.0,0.00013698,2]
[424146503,1780611032000,-500.0,0.00013698,2]
[424146500,1780611032000,-500.0,0.00013698,2]
[424146502,1780611032000,-283.08953976,0.00013698,2]
[424146497,1780611032000,-500.0,0.00013698,2]
[424146507,1780611032000,-500.0,0.00013698,2]
[424146508,1780611032000,-500.0,0.00013698,2]
[424146501,1780611032000,-500.0,0.00013698,2]
[424146505,1780611032000,-500.0,0.00013698,2]
[424146496,1780611032000,-500.0,0.00013698,2]
[424146530,1780611032000,-179.613487,0.00013698,2]
[424146513,1780611032000,-500.0,0.00013698,2]
[424146537,1780611032000,-500.0,0.00013698,2]
[424146560,1780611032000,-500.0,0.00013698,2]
[424146565,1780611032000,-1268.61,0.00013698,2]
[424146572,1780611032000,-1000.0,0.00013699,2]
[424146574,1780611032000,-500.0,0.0001397,2]
[424146573,1780611032000,-452.931567,0.00013699,2]
[424146564,1780611032000,-713.82,0.00013698,2]
[424146575,1780611032000,-328.88509587,0.0001397,2]
[424146576,1780611032000,-500.0,0.0001397,2]
[424146566,1780611032000,-500.0,0.00013698,2]
[424146567,1780611032000,-1785.99,0.00013698,2]
[424146570,1780611032000,-500.0,0.00013698,2]
[424146568,1780611032000,-500.0,0.00013698,2]
[424146569,1780611032000,-500.0,0.00013698,2]
[424146571,1780611032000,-500.0,0.00013698,2]
[424146577,1780611032000,-500.0,0.0001397,2]
[424146580,1780611032000,-500.0,0.00013971,2]
[424146532,1780611032000,-500.0,0.00013698,2]
[424146578,1780611032000,-500.0,0.0001397,2]
[424146584,1780611032000,-500.0,0.00013971,2]
[424146582,1780611032000,-500.0,0.00013971,2]
[424146585,1780611032000,-502.62131229,0.00013971,2]
[424146583,1780611032000,-500.0,0.00013971,2]
[424146581,1780611032000,-500.0,0.00013971,2]
[424146558,1780611032000,-500.0,0.00013698,2]
[424146559,1780611032000,-500.0,0.00013698,2]
[424146579,1780611032000,-500.0,0.0001397,2]
[424146555,1780611032000,-500.0,0.00013698,2]
[424146556,1780611032000,-1226.54,0.00013698,2]
[424146549,1780611032000,-562.07,0.00013698,2]
[424146548,1780611032000,-861.27,0.00013698,2]
[424146539,1780611032000,-500.0,0.00013698,2]
[424146546,1780611032000,-367.13167287,0.00013698,2]
[424146536,1780611032000,-500.0,0.00013698,2]
[424146545,1780611032000,-500.92774048,0.00013698,2]
[424146543,1780611032000,-834.95,0.00013698,2]
[424146541,1780611032000,-358.05704224,0.00013698,2]
[424146544,1780611032000,-597.46811124,0.00013698,2]
[424146538,1780611032000,-500.0,0.00013698,2]
[424146540,1780611032000,-500.0,0.00013698,2]
[424146550,1780611032000,-500.0,0.00013698,2]
[424146552,1780611032000,-500.0,0.00013698,2]
[424146553,1780611032000,-500.0,0.00013698,2]
[424146547,1780611032000,-500.0,0.00013698,2]
[424146554,1780611032000,-500.0,0.00013698,2]
[424146562,1780611032000,-601.78,0.00013698,2]
[424146551,1780611032000,-500.0,0.00013698,2]
[424146561,1780611032000,-605.65,0.00013698,2]
[424146563,1780611032000,-500.0,0.00013698,2]
[424146557,1780611032000,-500.0,0.00013698,2]
[424146542,1780611032000,-141.94295776,0.00013698,2]
[424146588,1780611033000,-500.84777848,0.00013971,2]
[424146587,1780611033000,-502.25916859,0.00013971,2]
[424146593,1780611033000,-451.19033222,0.00013971,2]
[424146586,1780611033000,-500.89530602,0.00013971,2]
[424146591,1780611033000,-500.0,0.00013971,2]
[424146592,1780611033000,-500.0,0.00013971,2]
[424146590,1780611033000,-500.0,0.00013971,2]
[424146589,1780611033000,-503.81685718,0.00013971,2]
[424146678,1780611038000,-500.0,0.00013971,2]
[424146681,1780611038000,-500.0,0.00013971,2]
[424146680,1780611038000,-500.0,0.00013971,2]
[424146694,1780611038000,-500.0,0.00013972,2]
[424146683,1780611038000,-500.0,0.00013971,2]
[424146684,1780611038000,-500.0,0.00013972,2]
[424146699,1780611038000,-500.0,0.00013972,2]
[424146697,1780611038000,-500.0,0.00013972,2]
[424146685,1780611038000,-500.0,0.00013972,2]
[424146696,1780611038000,-500.0,0.00013972,2]
[424146690,1780611038000,-500.0,0.00013972,2]
[424146687,1780611038000,-500.0,0.00013972,2]
[424146682,1780611038000,-500.0,0.00013971,2]
[424146669,1780611038000,-500.0,0.00013971,2]
[424146676,1780611038000,-500.0,0.00013971,2]
[424146665,1780611038000,-500.0,0.00013971,2]
[424146674,1780611038000,-500.0,0.00013971,2]
[424146673,1780611038000,-500.0,0.00013971,2]
[424146663,1780611038000,-190.67679704,0.00013971,2]
[424146671,1780611038000,-500.0,0.00013971,2]
[424146642,1780611038000,-500.0,0.00013971,2]
[424146644,1780611038000,-500.0,0.00013971,2]
[424146645,1780611038000,-500.0,0.00013971,2]
[424146647,1780611038000,-309.32320296,0.00013971,2]
[424146640,1780611038000,-500.0,0.00013971,2]
[424146692,1780611038000,-500.0,0.00013972,2]
[424146637,1780611038000,-500.0,0.00013698,2]
[424146638,1780611038000,-48.80966778,0.00013971,2]
[424146667,1780611038000,-500.0,0.00013971,2]
[424146686,1780611038000,-500.0,0.00013972,2]
[424146757,1780611038000,-500.0,0.00013972,2]
[424146703,1780611038000,-500.0,0.00013972,2]
[424146753,1780611038000,-500.0,0.00013972,2]
[424146688,1780611038000,-500.0,0.00013972,2]
[424146755,1780611038000,-500.0,0.00013972,2]
[424146747,1780611038000,-500.0,0.00013972,2]
[424146749,1780611038000,-861.27,0.00013972,2]
[424146751,1780611038000,-562.07,0.00013972,2]
[424146746,1780611038000,-834.95,0.00013972,2]
[424146744,1780611038000,-508.72528545,0.00013972,2]
[424146742,1780611038000,-500.0,0.00013972,2]
[424146740,1780611038000,-500.0,0.00013972,2]
[424146738,1780611038000,-500.0,0.00013972,2]
[424146732,1780611038000,-512.29,0.00013972,2]
[424146730,1780611038000,-500.0,0.00013972,2]
[424146736,1780611038000,-1296.46,0.00013972,2]
[424146759,1780611038000,-500.0,0.00013972,2]
[424146734,1780611038000,-1264.1,0.00013972,2]
[424146728,1780611038000,-500.0,0.00013972,2]
[424146705,1780611038000,-500.0,0.00013972,2]
[424146712,1780611038000,-500.0,0.00013972,2]
[424146714,1780611038000,-500.0,0.00013972,2]
[424146718,1780611038000,-500.0,0.00013972,2]
[424146722,1780611038000,-500.0,0.00013972,2]
[424146701,1780611038000,-500.0,0.00013972,2]
[424146710,1780611038000,-500.0,0.00013972,2]
[424146709,1780611038000,-500.0,0.00013972,2]
[424146720,1780611038000,-500.0,0.00013972,2]
[424146724,1780611038000,-500.0,0.00013972,2]
[424146716,1780611038000,-500.0,0.00013972,2]
[424146707,1780611038000,-500.0,0.00013972,2]
[424146726,1780611038000,-500.0,0.00013972,2]
[424146823,1780611039000,-500.0,0.00014246,2]
[424146821,1780611039000,-500.0,0.00014246,2]
[424146817,1780611039000,-500.0,0.00014246,2]
[424146819,1780611039000,-500.0,0.00014246,2]
[424146799,1780611039000,-500.0,0.00014245,2]
[424146814,1780611039000,-500.0,0.00014246,2]
[424146797,1780611039000,-500.0,0.00014245,2]
[424146812,1780611039000,-500.0,0.00014246,2]
[424146801,1780611039000,-500.0,0.00014245,2]
[424146825,1780611039000,-500.0,0.00014246,2]
[424146816,1780611039000,-500.0,0.00014246,2]
[424146827,1780611039000,-500.0,0.00014246,2]
[424146843,1780611039000,-500.0,0.00014246,2]
[424146832,1780611039000,-218.48,0.00014246,2]
[424146836,1780611039000,-500.0,0.00014246,2]
[424146834,1780611039000,-500.0,0.00014246,2]
[424146838,1780611039000,-500.0,0.00014246,2]
[424146857,1780611039000,-1264.1,0.00014246,2]
[424146851,1780611039000,-500.0,0.00014246,2]
[424146849,1780611039000,-167.53,0.00014246,2]
[424146853,1780611039000,-510.01,0.00014246,2]
[424146847,1780611039000,-500.0,0.00014246,2]
[424146839,1780611039000,-500.0,0.00014246,2]
[424146796,1780611039000,-500.0,0.00014245,2]
[424146829,1780611039000,-500.0,0.00014246,2]
[424146810,1780611039000,-500.0,0.00014246,2]
[424146841,1780611039000,-280.32,0.00014246,2]
[424146806,1780611039000,-500.0,0.00014246,2]
[424146763,1780611039000,-1226.54,0.00013972,2]
[424146761,1780611039000,-500.0,0.00013972,2]
[424146769,1780611039000,-605.65,0.00013972,2]
[424146765,1780611039000,-500.0,0.00013972,2]
[424146771,1780611039000,-601.78,0.00013972,2]
[424146767,1780611039000,-500.0,0.00013972,2]
[424146773,1780611039000,-713.82,0.00013972,2]
[424146776,1780611039000,-1785.99,0.00013972,2]
[424146775,1780611039000,-1268.61,0.00013972,2]
[424146778,1780611039000,-500.0,0.00013972,2]
[424146782,1780611039000,-500.0,0.00013972,2]
[424146808,1780611039000,-500.0,0.00014246,2]
[424146787,1780611039000,-500.0,0.00014245,2]
[424146780,1780611039000,-500.0,0.00013972,2]
[424146784,1780611039000,-159.76199353,0.00014145,2]
[424146792,1780611039000,-500.0,0.00014245,2]
[424146794,1780611039000,-500.0,0.00014245,2]
[424146790,1780611039000,-500.0,0.00014245,2]
[424146789,1780611039000,-500.0,0.00014245,2]
[424146793,1780611039000,-500.0,0.00014245,2]
[424146791,1780611039000,-500.0,0.00014245,2]
[424146795,1780611039000,-500.0,0.00014245,2]
[424146803,1780611039000,-500.0,0.00014245,2]
[424146804,1780611039000,-500.0,0.00014245,2]
[424146788,1780611039000,-500.0,0.00014245,2]
[424146863,1780611039000,-500.0,0.00014246,2]
[424146934,1780611039000,-500.0,0.0001452,2]
[424146861,1780611039000,-500.0,0.00014246,2]
[424146915,1780611039000,-500.0,0.00014519,2]
[424146916,1780611039000,-500.0,0.00014519,2]
[424146908,1780611039000,-500.0,0.00014519,2]
[424146920,1780611039000,-500.0,0.00014519,2]
[424146910,1780611039000,-500.0,0.00014519,2]
[424146911,1780611039000,-500.0,0.00014519,2]
[424146912,1780611039000,-329.12824145,0.00014519,2]
[424146913,1780611039000,-238.54688412,0.00014519,2]
[424146914,1780611039000,-500.0,0.00014519,2]
[424146921,1780611039000,-500.0,0.00014519,2]
[424146923,1780611039000,-500.0,0.00014519,2]
[424146903,1780611039000,-500.0,0.00014519,2]
[424146922,1780611039000,-500.0,0.00014519,2]
[424146924,1780611039000,-500.0,0.0001452,2]
[424146927,1780611039000,-232.12,0.0001452,2]
[424146931,1780611039000,-500.0,0.0001452,2]
[424146925,1780611039000,-500.0,0.0001452,2]
[424146930,1780611039000,-500.0,0.0001452,2]
[424146932,1780611039000,-500.0,0.0001452,2]
[424146928,1780611039000,-500.0,0.0001452,2]
[424146926,1780611039000,-500.0,0.0001452,2]
[424146936,1780611039000,-500.0,0.0001452,2]
[424146935,1780611039000,-592.64,0.0001452,2]
[424146845,1780611039000,-500.0,0.00014246,2]
[424146929,1780611039000,-294.15,0.0001452,2]
[424146906,1780611039000,-483.07049408,0.00014519,2]
[424146933,1780611039000,-500.0,0.0001452,2]
[424146902,1780611039000,-500.0,0.00014519,2]
[424146891,1780611039000,-1268.61,0.00014246,2]
[424146859,1780611039000,-1296.46,0.00014246,2]
[424146865,1780611039000,-834.95,0.00014246,2]
[424146876,1780611039000,-500.0,0.00014246,2]
[424146878,1780611039000,-500.0,0.00014246,2]
[424146866,1780611039000,-500.0,0.00014246,2]
[424146880,1780611039000,-500.0,0.00014246,2]
[424146882,1780611039000,-1226.54,0.00014246,2]
[424146870,1780611039000,-562.07,0.00014246,2]
[424146884,1780611039000,-500.0,0.00014246,2]
[424146872,1780611039000,-500.0,0.00014246,2]
[424146874,1780611039000,-500.0,0.00014246,2]
[424146855,1780611039000,-512.29,0.00014246,2]
[424146887,1780611039000,-605.65,0.00014246,2]
[424146868,1780611039000,-861.27,0.00014246,2]
[424146897,1780611039000,-151.02,0.000143,2]
[424146896,1780611039000,-500.0,0.00014246,2]
[424146894,1780611039000,-500.0,0.00014246,2]
[424146904,1780611039000,-500.0,0.00014519,2]
[424146901,1780611039000,-194.89,0.00014519,2]
[424146892,1780611039000,-1785.99,0.00014246,2]
[424146893,1780611039000,-500.0,0.00014246,2]
[424146890,1780611039000,-713.82,0.00014246,2]
[424146889,1780611039000,-601.78,0.00014246,2]
[424146886,1780611039000,-500.0,0.00014246,2]
[424146899,1780611039000,-177.116918,0.0001436,2]
[424146983,1780611040000,-500.0,0.00014794,2]
[424146985,1780611040000,-500.0,0.00014794,2]
[424146988,1780611040000,-201.31,0.00014794,2]
[424146981,1780611040000,-500.0,0.00014794,2]
[424146987,1780611040000,-500.0,0.00014794,2]
[424146978,1780611040000,-500.0,0.00014794,2]
[424146979,1780611040000,-500.0,0.00014794,2]
[424146984,1780611040000,-204.4,0.00014794,2]
[424146980,1780611040000,-500.0,0.00014794,2]
[424146982,1780611040000,-500.0,0.00014794,2]
[424147002,1780611040000,-1226.54,0.00014794,2]
[424147000,1780611040000,-500.0,0.00014794,2]
[424146990,1780611040000,-1264.1,0.00014794,2]
[424146989,1780611040000,-512.29,0.00014794,2]
[424147001,1780611040000,-500.0,0.00014794,2]
[424146993,1780611040000,-500.0,0.00014794,2]
[424146994,1780611040000,-834.95,0.00014794,2]
[424146992,1780611040000,-500.0,0.00014794,2]
[424146996,1780611040000,-861.27,0.00014794,2]
[424146991,1780611040000,-1296.46,0.00014794,2]
[424146977,1780611040000,-462.46,0.00014793,2]
[424146998,1780611040000,-500.0,0.00014794,2]
[424146986,1780611040000,-500.0,0.00014794,2]
[424146976,1780611040000,-500.0,0.00014793,2]
[424146963,1780611040000,-500.0,0.0001452,2]
[424146969,1780611040000,-500.0,0.00014793,2]
[424146999,1780611040000,-500.0,0.00014794,2]
[424146956,1780611040000,-500.0,0.0001452,2]
[424146960,1780611040000,-713.82,0.0001452,2]
[424146958,1780611040000,-605.65,0.0001452,2]
[424146961,1780611040000,-1268.61,0.0001452,2]
[424146955,1780611040000,-1226.54,0.0001452,2]
[424146957,1780611040000,-391.2,0.0001452,2]
[424146959,1780611040000,-601.78,0.0001452,2]
[424146951,1780611040000,-500.0,0.0001452,2]
[424146952,1780611040000,-500.0,0.0001452,2]
[424146953,1780611040000,-500.0,0.0001452,2]
[424146954,1780611040000,-500.0,0.0001452,2]
[424146973,1780611040000,-500.0,0.00014793,2]
[424146974,1780611040000,-500.0,0.00014793,2]
[424146975,1780611040000,-500.0,0.00014793,2]
[424146972,1780611040000,-500.0,0.00014793,2]
[424146964,1780611040000,-500.0,0.0001452,2]
[424146962,1780611040000,-1785.99,0.0001452,2]
[424146968,1780611040000,-238.16,0.00014793,2]
[424146965,1780611040000,-500.0,0.0001452,2]
[424146967,1780611040000,-500.0,0.00014792,2]
[424146966,1780611040000,-500.0,0.00014792,2]
[424146971,1780611040000,-238.16375513,0.00014793,2]
[424146970,1780611040000,-472.0913195,0.00014793,2]
[424146995,1780611040000,-500.0,0.00014794,2]
[424146997,1780611040000,-562.07,0.00014794,2]
[424147006,1780611040000,-713.82,0.00014794,2]
[424147042,1780611040000,-500.0,0.00015068,2]
[424147033,1780611040000,-500.0,0.00015068,2]
[424147034,1780611040000,-500.0,0.00015068,2]
[424147035,1780611040000,-834.95,0.00015068,2]
[424147031,1780611040000,-1264.1,0.00015068,2]
[424147036,1780611040000,-500.0,0.00015068,2]
[424147037,1780611040000,-861.27,0.00015068,2]
[424147041,1780611040000,-500.0,0.00015068,2]
[424147038,1780611040000,-562.07,0.00015068,2]
[424147040,1780611040000,-500.0,0.00015068,2]
[424147039,1780611040000,-500.0,0.00015068,2]
[424147032,1780611040000,-1296.46,0.00015068,2]
[424147044,1780611040000,-500.0,0.00015068,2]
[424147045,1780611040000,-605.65,0.00015068,2]
[424147054,1780611040000,-229.12,0.0001534,2]
[424147047,1780611040000,-713.82,0.00015068,2]
[424147050,1780611040000,-500.0,0.00015068,2]
[424147053,1780611040000,-170.061425,0.00015068,2]
[424147048,1780611040000,-1268.61,0.00015068,2]
[424147049,1780611040000,-1785.99,0.00015068,2]
[424147052,1780611040000,-500.0,0.00015068,2]
[424147051,1780611040000,-500.0,0.00015068,2]
[424147003,1780611040000,-500.0,0.00014794,2]
[424147055,1780611040000,-500.0,0.00015341,2]
[424147043,1780611040000,-1226.54,0.00015068,2]
[424147028,1780611040000,-500.0,0.00015068,2]
[424147046,1780611040000,-601.78,0.00015068,2]
[424147024,1780611040000,-500.0,0.00015068,2]
[424147007,1780611040000,-1268.61,0.00014794,2]
[424147004,1780611040000,-605.65,0.00014794,2]
[424147021,1780611040000,-500.0,0.00015068,2]
[424147010,1780611040000,-500.0,0.00014794,2]
[424147009,1780611040000,-500.0,0.00014794,2]
[424147005,1780611040000,-601.78,0.00014794,2]
[424147008,1780611040000,-1785.99,0.00014794,2]
[424147012,1780611040000,-638.77928997,0.00015,2]
[424147014,1780611040000,-500.0,0.00015066,2]
[424147013,1780611040000,-500.0,0.00015066,2]
[424147015,1780611040000,-500.0,0.00015067,2]
[424147011,1780611040000,-500.0,0.00014794,2]
[424147025,1780611040000,-500.0,0.00015068,2]
[424147029,1780611040000,-500.0,0.00015068,2]
[424147016,1780611040000,-500.0,0.00015067,2]
[424147026,1780611040000,-171.94,0.00015068,2]
[424147022,1780611040000,-500.0,0.00015068,2]
[424147023,1780611040000,-500.0,0.00015068,2]
[424147027,1780611040000,-500.0,0.00015068,2]
[424147020,1780611040000,-500.0,0.00015067,2]
[424147017,1780611040000,-500.0,0.00015067,2]
[424147018,1780611040000,-500.0,0.00015067,2]
[424147019,1780611040000,-500.0,0.00015067,2]
[424147030,1780611040000,-512.29,0.00015068,2]
[424147104,1780611041000,-500.0,0.00015616,2]
[424147115,1780611041000,-500.0,0.00015616,2]
[424147105,1780611041000,-500.0,0.00015616,2]
[424147114,1780611041000,-500.0,0.00015616,2]
[424147092,1780611041000,-498.88,0.00015615,2]
[424147103,1780611041000,-500.0,0.00015616,2]
[424147096,1780611041000,-500.0,0.00015615,2]
[424147098,1780611041000,-496.74,0.00015616,2]
[424147102,1780611041000,-500.0,0.00015616,2]
[424147100,1780611041000,-500.0,0.00015616,2]
[424147113,1780611041000,-562.07,0.00015616,2]
[424147106,1780611041000,-500.0,0.00015616,2]
[424147108,1780611041000,-512.29,0.00015616,2]
[424147117,1780611041000,-1226.54,0.00015616,2]
[424147109,1780611041000,-1264.1,0.00015616,2]
[424147116,1780611041000,-500.0,0.00015616,2]
[424147112,1780611041000,-861.27,0.00015616,2]
[424147111,1780611041000,-834.95,0.00015616,2]
[424147107,1780611041000,-500.0,0.00015616,2]
[424147127,1780611041000,-159.76199351,0.0001573,2]
[424147118,1780611041000,-500.0,0.00015616,2]
[424147120,1780611041000,-601.78,0.00015616,2]
[424147119,1780611041000,-605.65,0.00015616,2]
[424147122,1780611041000,-1268.61,0.00015616,2]
[424147121,1780611041000,-713.82,0.00015616,2]
[424147123,1780611041000,-1785.99,0.00015616,2]
[424147126,1780611041000,-500.0,0.00015616,2]
[424147087,1780611041000,-500.0,0.00015342,2]
[424147110,1780611041000,-1296.46,0.00015616,2]
[424147082,1780611041000,-1268.61,0.00015342,2]
[424147058,1780611041000,-500.0,0.00015342,2]
[424147090,1780611041000,-5670.78064275,0.0001559,2]
[424147124,1780611041000,-500.0,0.00015616,2]
[424147057,1780611041000,-500.0,0.00015341,2]
[424147066,1780611041000,-512.29,0.00015342,2]
[424147056,1780611041000,-500.0,0.00015341,2]
[424147067,1780611041000,-1264.1,0.00015342,2]
[424147059,1780611041000,-500.0,0.00015342,2]
[424147060,1780611041000,-500.0,0.00015342,2]
[424147061,1780611041000,-500.0,0.00015342,2]
[424147063,1780611041000,-500.0,0.00015342,2]
[424147062,1780611041000,-500.0,0.00015342,2]
[424147064,1780611041000,-500.0,0.00015342,2]
[424147065,1780611041000,-500.0,0.00015342,2]
[424147068,1780611041000,-1296.46,0.00015342,2]
[424147076,1780611041000,-500.0,0.00015342,2]
[424147069,1780611041000,-500.0,0.00015342,2]
[424147080,1780611041000,-601.78,0.00015342,2]
[424147072,1780611041000,-562.07,0.00015342,2]
[424147077,1780611041000,-1226.54,0.00015342,2]
[424147078,1780611041000,-500.0,0.00015342,2]
[424147079,1780611041000,-605.65,0.00015342,2]
[424147070,1780611041000,-834.95,0.00015342,2]
[424147071,1780611041000,-861.27,0.00015342,2]
[424147074,1780611041000,-500.0,0.00015342,2]
[424147073,1780611041000,-500.0,0.00015342,2]
[424147075,1780611041000,-554.22,0.00015342,2]
[424147081,1780611041000,-713.82,0.00015342,2]
[424147083,1780611041000,-1785.99,0.00015342,2]
[424147085,1780611041000,-500.0,0.00015342,2]
[424147089,1780611041000,-500.0,0.00015342,2]
[424147094,1780611041000,-500.0,0.00015615,2]
[424147125,1780611041000,-500.0,0.00015616,2]
[424147188,1780611041000,-500.0,0.00016164,2]
[424147129,1780611041000,-177.116918,0.00015871,2]
[424147179,1780611041000,-500.0,0.00016164,2]
[424147174,1780611041000,-580.16,0.00016164,2]
[424147176,1780611041000,-608.0,0.00016164,2]
[424147192,1780611041000,-605.65,0.00016164,2]
[424147181,1780611041000,-512.29,0.00016164,2]
[424147196,1780611041000,-1268.61,0.00016164,2]
[424147195,1780611041000,-713.82,0.00016164,2]
[424147191,1780611041000,-500.0,0.00016164,2]
[424147184,1780611041000,-1296.46,0.00016164,2]
[424147183,1780611041000,-1264.1,0.00016164,2]
[424147193,1780611041000,-601.78,0.00016164,2]
[424147189,1780611041000,-500.0,0.00016164,2]
[424147185,1780611041000,-834.95,0.00016164,2]
[424147187,1780611041000,-562.07,0.00016164,2]
[424147186,1780611041000,-861.27,0.00016164,2]
[424147210,1780611041000,-562.07,0.00016438,2]
[424147208,1780611041000,-834.95,0.00016438,2]
[424147209,1780611041000,-861.27,0.00016438,2]
[424147200,1780611041000,-500.0,0.00016164,2]
[424147203,1780611041000,-500.0,0.00016438,2]
[424147197,1780611041000,-1785.99,0.00016164,2]
[424147199,1780611041000,-500.0,0.00016164,2]
[424147206,1780611041000,-1264.1,0.00016438,2]
[424147205,1780611041000,-512.29,0.00016438,2]
[424147207,1780611041000,-1296.46,0.00016438,2]
[424147204,1780611041000,-500.0,0.00016438,2]
[424147201,1780611041000,-500.0,0.00016164,2]
[424147202,1780611041000,-500.0,0.00016438,2]
[424147130,1780611041000,-500.0,0.00015889,2]
[424147178,1780611041000,-500.0,0.00016164,2]
[424147173,1780611041000,-500.0,0.00016164,2]
[424147190,1780611041000,-1226.54,0.00016164,2]
[424147167,1780611041000,-173.8786362,0.00016132,2]
[424147169,1780611041000,-546.16,0.00016163,2]
[424147147,1780611041000,-31.64134001,0.0001589,2]
[424147156,1780611041000,-500.0,0.0001589,2]
[424147158,1780611041000,-500.0,0.0001589,2]
[424147149,1780611041000,-1296.46,0.0001589,2]
[424147136,1780611041000,-500.0,0.0001589,2]
[424147153,1780611041000,-861.27,0.0001589,2]
[424147159,1780611041000,-605.65,0.0001589,2]